fUST/lending_fUST_20250821
["ID","MTS","AMOUNT","RATE_DAILY","PERIOD"]
[380457794,1755780642911,-746.21,0.00021917,3]
[380457795,1755780642920,-441.72662244,0.00021917,3]
[380457796,1755780642929,-263.07914136,0.00021917,3]
[380457797,1755780642939,-480.0,0.00021917,3]
[380457798,1755780642948,-480.0,0.00021917,3]
[380457799,1755780642957,-480.0,0.00021917,3]
[380457800,1755780642967,-1086.91,0.00021917,3]
[380457801,1755780642976,-292.98444764,0.00021917,3]
[380457805,1755780643253,-187.01555236,0.00021917,3]
[380457806,1755780643263,-385.7658349,0.00021917,3]
[380457807,1755780643275,-137.4941651,0.00021917,3]
[380457808,1755780643284,-217.91034097,0.00021917,3]
[380457809,1755780643296,-262.08965903,0.00021917,3]
[380457810,1755780643305,-480.0,0.00021917,3]
[380457811,1755780643315,-480.0,0.00021917,3]
[380457812,1755780643324,-480.0,0.00021917,3]
[380457813,1755780643333,-1265.2,0.00021917,3]
[380457814,1755780643343,-500.0,0.00021917,3]
[380457816,1755780643352,-500.0,0.00021917,3]
[380457817,1755780643362,-500.0,0.00021917,3]
[380457818,1755780643371,-306.9,0.00021917,3]
[380457819,1755780643380,-465.41013443,0.00021917,3]
[380457820,1755780643390,-480.0,0.00021917,3]
[380457821,1755780643399,-480.0,0.00021917,3]
[380457822,1755780643409,-480.0,0.00021917,3]
[380457823,1755780643418,-151.0,0.00021917,2]
[380457824,1755780643427,-151.0,0.00021917,2]
[380457825,1755780643436,-151.0,0.00021917,2]
[380457826,1755780643446,-151.0,0.00021917,2]
[380457827,1755780643455,-151.0,0.00021917,2]
[380457828,1755780643465,-151.0,0.00021917,2]
[380457829,1755780643474,-1065.77,0.00021917,3]
[380457830,1755780643483,-754.33,0.00021917,3]
[380457831,1755780643493,-480.0,0.00021917,3]
[380457832,1755780643506,-480.0,0.00021917,3]
[380457833,1755780643515,-344.51219752,0.00021917,3]
[380457834,1755780643525,-480.0,0.00021917,3]
[380457835,1755780643535,-405.77106324,0.00021917,3]
[380457836,1755780643545,-151.0,0.00021917,2]
[380457837,1755780643555,-80.79089129,0.00021917,2]
[380457838,1755780644056,-592.73,0.00020042,2]
[380457843,1755780646271,-4407.27,0.00020042,2]
[380457844,1755780646280,-500.0,0.0002062,2]
[380457845,1755780646289,-250.0,0.00021721,2]
[380457846,1755780646299,-408.0,0.00021721,2]
[380457847,1755780646308,-356.17,0.00021907,10]
[380457849,1755780646316,-70.20910871,0.00021917,2]
[380457850,1755780646325,-480.0,0.00021917,3]
[380457851,1755780646334,-151.0,0.00021917,2]
[380457852,1755780646343,-151.0,0.00021917,2]
[380457854,1755780646351,-151.0,0.00021917,2]
[380457856,1755780646361,-151.0,0.00021917,2]
[380457858,1755780646371,-151.0,0.00021917,2]
[380457860,1755780646380,-151.0,0.00021917,2]
[380457862,1755780646389,-151.0,0.00021917,2]
[380457864,1755780646397,-151.0,0.00021917,2]
[380457865,1755780646406,-151.0,0.00021917,2]
[380457866,1755780646415,-151.0,0.00021917,2]
[380457867,1755780646424,-151.0,0.00021917,2]
[380457868,1755780646433,-480.0,0.00021917,3]
[380457869,1755780646442,-480.0,0.00021917,3]
[380457870,1755780646451,-480.0,0.00021917,3]
[380457871,1755780646459,-151.0,0.00021917,2]
[380457872,1755780646468,-480.0,0.00021917,3]
[380457873,1755780646477,-151.0,0.00021917,2]
[380457874,1755780646486,-173.87521,0.00021917,2]
[380457875,1755780646495,-2504.79,0.00021917,3]
[380457876,1755780646504,-151.0,0.00021917,2]
[380457877,1755780646513,-151.0,0.00021917,2]
[380457878,1755780646522,-151.0,0.00021917,2]
[380457879,1755780646531,-151.0,0.00021917,2]
[380457880,1755780646540,-151.0,0.00021917,2]
[380457881,1755780646551,-159.82377,0.00021917,2]
[380457882,1755780646560,-151.0,0.00021917,2]
[380457883,1755780646569,-480.0,0.00021917,3]
[380457884,1755780646579,-480.0,0.00021917,3]
[380457885,1755780646588,-753.59,0.00021917,3]
[380457886,1755780646598,-506.24,0.00021917,3]
[380457887,1755780646777,-500.0,0.00021917,3]
[380457888,1755780646786,-500.0,0.00021917,3]
[380457889,1755780646795,-480.0,0.00021917,3]
[380457890,1755780646804,-154.077173,0.00021917,2]
[380457891,1755780646813,-154.077173,0.00021917,2]
[380457892,1755780646822,-4492.36,0.00021917,3]
[380457893,1755780646831,-154.077173,0.00021917,2]
[380457894,1755780646840,-151.0,0.00021917,2]
[380457895,1755780646849,-480.0,0.00021917,3]
[380457896,1755780646858,-151.0,0.00021917,3]
[380457897,1755780646867,-151.0,0.00021917,2]
[380457898,1755780646876,-480.0,0.00021917,3]
[380457899,1755780646885,-151.0,0.00021917,2]
[380457900,1755780646895,-154.077173,0.00021917,2]
[380457901,1755780646904,-401.03811493,0.00021917,3]
[380457902,1755780646913,-154.077173,0.00021917,2]
[380457903,1755780646923,-500.0,0.00021917,3]
[380457904,1755780646933,-154.077173,0.00021917,2]
[380457905,1755780646942,-480.0,0.00021917,3]
[380457907,1755780646951,-154.077173,0.00021917,2]
[380457909,1755780646963,-620.54,0.00021917,3]
[380457911,1755780646973,-154.077173,0.00021917,2]
[380457913,1755780646982,-154.077173,0.00021917,2]
[380457915,1755780646991,-154.077173,0.00021917,2]
[380457917,1755780647000,-151.0,0.00021917,3]
[380457919,1755780647011,-154.077173,0.00021917,2]
[380457921,1755780647021,-154.077173,0.00021917,2]
[380457923,1755780647030,-480.0,0.00021917,3]
[380457925,1755780647039,-151.0,0.00021917,3]
[380457927,1755780647048,-480.0,0.00021917,3]
[380457929,1755780647058,-480.0,0.00021917,3]
[380457931,1755780647067,-653.32,0.00021917,3]
[380457933,1755780647076,-480.0,0.00021917,3]
[380457935,1755780647086,-480.0,0.00021917,3]
[380457937,1755780647096,-480.0,0.00021917,3]
[380457939,1755780647105,-480.0,0.00021917,3]
[380457941,1755780647115,-480.0,0.00021917,3]
[380457943,1755780647123,-475.30450188,0.00021917,3]
[380457945,1755780647132,-1173.15,0.00021917,3]
[380457947,1755780647141,-480.0,0.00021917,3]
[380457949,1755780647150,-480.0,0.00021917,3]
[380457951,1755780647159,-480.0,0.00021917,3]
[380457952,1755780647168,-480.0,0.00021917,3]
[380457955,1755780647177,-480.0,0.00021917,3]
[380457956,1755780647187,-480.0,0.00021917,3]
[380457958,1755780647196,-480.0,0.00021917,3]
[380457960,1755780647206,-460.49247425,0.00021917,3]
[380457962,1755780647215,-325.710748,0.00021917,3]
[380457964,1755780647224,-480.0,0.00021917,3]
[380457966,1755780647233,-327.9330019,0.00021917,3]
[380457968,1755780647242,-480.0,0.00021917,3]
[380457970,1755780647251,-1098.68,0.00021917,3]
[380457972,1755780647267,-550.43,0.00021917,3]
[380457974,1755780647276,-1601.93,0.00021917,3]
[380457976,1755780647285,-480.0,0.00021917,3]
[380457978,1755780647295,-480.0,0.00021917,3]
[380457980,1755780647304,-480.0,0.00021917,3]
[380457982,1755780647315,-480.0,0.00021917,3]
[380457984,1755780647325,-480.0,0.00021917,3]
[380457986,1755780647334,-480.0,0.00021917,3]
[380457988,1755780647344,-381.83944249,0.00021917,3]
[380457990,1755780647354,-480.0,0.00021917,3]
[380457992,1755780647363,-151.0,0.00021917,2]
[380457994,1755780647372,-151.0,0.00021917,2]
[380457996,1755780647382,-151.0,0.00021917,2]
[380457998,1755780647393,-480.0,0.00021917,3]
[380458000,1755780647403,-151.0,0.00021917,2]
[380458002,1755780647413,-480.0,0.00021917,3]
[380458004,1755780647422,-151.0,0.00021917,2]
[380458006,1755780647432,-151.0,0.00021917,2]
[380458008,1755780647441,-153.349778,0.00021917,2]
[380458010,1755780647450,-480.0,0.00021917,3]
[380458012,1755780647460,-219.140018,0.00021917,2]
[380458014,1755780647469,-480.0,0.00021917,3]
[380458016,1755780647478,-2319.02,0.00021917,3]
[380458018,1755780647487,-480.0,0.00021917,3]
[380458020,1755780647496,-480.0,0.00021917,3]
[380458022,1755780647509,-530.9,0.00021917,3]
[380458024,1755780647519,-1308.63,0.00021917,3]
[380458026,1755780647528,-364.82527584,0.00021917,3]
[380458028,1755780647541,-1165.1,0.00021917,3]
[380458030,1755780647550,-480.0,0.00021917,3]
[380458032,1755780647559,-777.38,0.00021917,3]
[380458034,1755780647568,-151.0,0.00021917,2]
[380458036,1755780647579,-480.0,0.00021917,3]
[380458038,1755780647588,-151.0,0.00021917,2]
[380458040,1755780647597,-151.0,0.00021917,2]
[380458042,1755780647606,-297.205237,0.00021917,2]
[380458044,1755780647617,-480.0,0.00021917,3]
[380458046,1755780647626,-480.0,0.00021917,3]
[380458048,1755780647635,-480.0,0.00021917,3]
[380458050,1755780647644,-480.0,0.00021917,3]
[380458052,1755780647654,-480.0,0.00021917,3]
[380458054,1755780647663,-597.31,0.00021917,3]
[380458056,1755780647672,-480.0,0.00021917,3]
[380458058,1755780647682,-480.0,0.00021917,3]
[380458060,1755780647691,-498.65,0.00021917,3]
[380458062,1755780647700,-1551.65,0.00021917,3]
[380458064,1755780647709,-480.0,0.00021917,3]
[380458066,1755780647718,-480.0,0.00021917,3]
[380458068,1755780647727,-480.0,0.00021917,3]
[380458069,1755780647737,-480.0,0.00021917,3]
[380458071,1755780647746,-2359.09,0.00021917,2]
[380458073,1755780647757,-480.0,0.00021917,3]
[380458075,1755780647768,-848.98,0.00021917,3]
[380458077,1755780647777,-151.0,0.00021917,2]
[380458079,1755780647786,-151.0,0.00021917,2]
[380458081,1755780647796,-151.0,0.00021917,2]
[380458083,1755780647805,-151.0,0.00021917,3]
[380458085,1755780647815,-480.0,0.00021917,3]
[380458087,1755780647824,-151.0,0.00021917,3]
[380458088,1755780647834,-480.0,0.00021917,3]
[380458089,1755780647843,-500.0,0.00021917,3]
[380458090,1755780647852,-480.0,0.00021917,3]
[380458092,1755780647861,-931.74,0.00021917,3]
[380458093,1755780647870,-151.0,0.00021917,2]
[380458094,1755780647880,-480.0,0.00021917,3]
[380458095,1755780647890,-480.0,0.00021917,3]
[380458096,1755780647899,-151.0,0.00021917,2]
[380458097,1755780647909,-151.0,0.00021917,3]
[380458099,1755780647919,-151.0,0.00021917,2]
[380458101,1755780647928,-151.0,0.00021917,3]
[380458102,1755780647937,-480.0,0.00021917,3]
[380458103,1755780647947,-480.0,0.00021917,3]
[380458105,1755780647956,-962.14,0.00021917,3]
[380458106,1755780647966,-152.61271,0.00021917,3]
[380458107,1755780647975,-506.43,0.00021917,3]
[380458109,1755780647984,-480.0,0.00021917,3]
[380458111,1755780647993,-500.0,0.00021917,3]
[380458112,1755780648003,-480.0,0.00021917,3]
[380458113,1755780648017,-480.0,0.00021917,3]
[380458114,1755780648027,-480.0,0.00021917,3]
[380458115,1755780648036,-480.0,0.00021917,3]
[380458116,1755780648046,-151.0,0.00021917,3]
[380458117,1755780648055,-151.0,0.00021917,2]
[380458118,1755780648065,-480.0,0.00021917,3]
[380458119,1755780648074,-1405.81,0.00021917,3]
[380458120,1755780648084,-480.0,0.00021917,3]
[380458121,1755780648093,-151.0,0.00021917,2]
[380458122,1755780648104,-4411.0,0.00021917,3]
[380458123,1755780648114,-151.0,0.00021917,2]
[380458124,1755780648123,-480.0,0.00021917,3]
[380458125,1755780648133,-151.0,0.00021917,3]
[380458126,1755780648142,-480.0,0.00021917,3]
[380458127,1755780648152,-480.0,0.00021917,3]
[380458128,1755780648161,-158.72898,0.00021917,2]
[380458129,1755780648170,-500.0,0.00021917,3]
[380458130,1755780648180,-151.0,0.00021917,3]
[380458131,1755780648190,-480.0,0.00021917,3]
[380458132,1755780648199,-1176.72,0.00021917,3]
[380458133,1755780648208,-480.0,0.00021917,3]
[380458134,1755780648217,-574.0,0.00021917,3]
[380458135,1755780648227,-550.37,0.00021917,3]
[380458136,1755780648236,-480.0,0.00021917,3]
[380458137,1755780648246,-480.0,0.00021917,3]
[380458138,1755780648255,-480.0,0.00021917,3]
[380458139,1755780648267,-480.0,0.00021917,3]
[380458140,1755780648277,-1686.9,0.00021917,3]
[380458141,1755780648287,-463.89815289,0.00021917,3]
[380458142,1755780648297,-935.16,0.00021917,3]
[380458143,1755780648306,-480.0,0.00021917,3]
[380458144,1755780648316,-1831.49,0.00021917,3]
[380458145,1755780648326,-480.0,0.00021917,3]
[380458146,1755780648336,-480.0,0.00021917,3]
[380458147,1755780648345,-2448.32,0.00021917,3]
[380458148,1755780648357,-480.0,0.00021917,3]
[380458149,1755780648366,-656.19,0.00021917,3]
[380458150,1755780648376,-823.13,0.00021917,3]
[380458151,1755780648386,-480.0,0.00021917,3]
[380458152,1755780648396,-904.34,0.00021917,3]
[380458153,1755780648405,-480.0,0.00021917,3]
[380458154,1755780648415,-480.0,0.00021917,3]
[380458155,1755780648424,-151.0,0.00021917,2]
[380458156,1755780648434,-151.0,0.00021917,2]
[380458157,1755780648444,-522.96,0.00021917,3]
[380458158,1755780648453,-151.0,0.00021917,2]
[380458159,1755780648462,-480.0,0.00021917,3]
[380458160,1755780648472,-480.0,0.00021917,3]
[380458161,1755780648481,-480.0,0.00021917,3]
[380458162,1755780648491,-152.129772,0.00021917,2]
[380458163,1755780648500,-151.0,0.00021917,2]
[380458164,1755780648513,-480.0,0.00021917,3]
[380458165,1755780648523,-151.0,0.00021917,2]
[380458166,1755780648533,-2510.54,0.00021917,3]
[380458167,1755780648544,-500.64,0.00021917,3]
[380458168,1755780648555,-151.0,0.00021917,2]
[380458169,1755780648564,-825.72,0.00021917,3]
[380458170,1755780648574,-480.0,0.00021917,3]
[380458171,1755780648584,-190.68311965,0.00021917,3]
[380458172,1755780648593,-661.0,0.00021917,3]
[380458173,1755780648604,-480.0,0.00021917,3]
[380458174,1755780648615,-577.50173248,0.00021917,3]
[380458175,1755780648624,-1667.74,0.00021917,3]
[380458176,1755780648634,-480.0,0.00021917,3]
[380458177,1755780648644,-151.0,0.00021917,3]
[380458178,1755780648654,-480.0,0.00021917,3]
[380458179,1755780648664,-151.0,0.00021917,3]
[380458180,1755780648673,-480.0,0.00021917,3]
[380458181,1755780648682,-151.0,0.00021917,3]
[380458182,1755780648692,-480.0,0.00021917,3]
[380458183,1755780648701,-443.0,0.00021917,3]
[380458184,1755780648710,-480.0,0.00021917,3]
[380458185,1755780648720,-776.47,0.00021917,3]
[380458186,1755780648730,-1914.1,0.00021917,3]
[380458187,1755780648740,-151.0,0.00021917,2]
[380458188,1755780648749,-480.0,0.00021917,3]
[380458189,1755780648758,-151.0,0.00021917,2]
[380458190,1755780648767,-151.0,0.00021917,2]
[380458191,1755780648777,-151.0,0.00021917,2]
[380458192,1755780648787,-480.0,0.00021917,3]
[380458193,1755780648797,-151.0,0.00021917,2]
[380458194,1755780648806,-480.0,0.00021917,3]
[380458195,1755780648816,-151.0,0.00021917,2]
[380458196,1755780648825,-1093.25,0.00021917,3]
[380458197,1755780648835,-480.0,0.00021917,3]
[380458198,1755780648844,-451.89445263,0.00021917,3]
[380458199,1755780648854,-1299.58,0.00021917,3]
[380458200,1755780648864,-480.0,0.00021917,3]
[380458201,1755780648874,-500.0,0.00021917,3]
[380458202,1755780648883,-2701.96,0.00021917,3]
[380458203,1755780648893,-151.0,0.00021917,3]
[380458204,1755780648902,-7499.05,0.00021917,3]
[380458205,1755780648912,-1067.97,0.00021917,3]
[380458206,1755780648921,-480.0,0.00021917,3]
[380458207,1755780648931,-151.0,0.00021917,3]
[380458208,1755780648941,-771.3,0.00021917,3]
[380458209,1755780648951,-6526.19,0.00021917,3]
[380458210,1755780648960,-151.0,0.00021917,2]
[380458211,1755780648970,-151.0,0.00021917,2]
[380458212,1755780648979,-151.0,0.00021917,2]
[380458213,1755780648988,-480.0,0.00021917,3]
[380458214,1755780648998,-151.0,0.00021917,2]
[380458215,1755780649007,-665.36,0.00021917,3]
[380458216,1755780649018,-151.0,0.00021917,3]
[380458217,1755780649028,-151.0,0.00021917,3]
[380458218,1755780649038,-480.0,0.00021917,3]
[380458219,1755780649047,-151.0,0.00021917,3]
[380458220,1755780649057,-480.0,0.00021917,3]
[380458221,1755780649067,-480.0,0.00021917,3]
[380458222,1755780649076,-1210.44,0.00021917,3]
[380458223,1755780649085,-1137.28,0.00021917,3]
[380458224,1755780649095,-151.0,0.00021917,2]
[380458225,1755780649106,-480.0,0.00021917,3]
[380458226,1755780649115,-480.0,0.00021917,3]
[380458227,1755780649125,-480.0,0.00021917,3]
[380458228,1755780649135,-480.0,0.00021917,3]
[380458229,1755780649144,-640.25,0.00021917,3]
[380458230,1755780649154,-523.47911892,0.00021917,3]
[380458231,1755780649164,-4733.52,0.00021917,3]
[380458232,1755780649174,-683.2,0.00021917,3]
[380458233,1755780649185,-703.09,0.00021917,2]
[380458234,1755780649194,-480.0,0.00021917,3]
[380458235,1755780649204,-570.6,0.00021917,3]
[380458236,1755780649214,-480.0,0.00021917,3]
[380458237,1755780649224,-480.0,0.00021917,3]
[380458238,1755780649233,-193.152302,0.00021917,2]
[380458239,1755780649243,-193.152302,0.00021917,2]
[380458240,1755780649252,-193.152302,0.00021917,2]
[380458241,1755780649265,-193.152302,0.00021917,2]
[380458242,1755780649275,-193.152302,0.00021917,2]
[380458243,1755780649284,-7892.87,0.00021917,3]
[380458244,1755780649294,-193.152302,0.00021917,2]
[380458245,1755780649304,-480.0,0.00021917,3]
[380458246,1755780649314,-927.85,0.00021917,3]
[380458247,1755780649324,-193.152302,0.00021917,2]
[380458248,1755780649334,-480.0,0.00021917,3]
[380458249,1755780649343,-193.152302,0.00021917,2]
[380458250,1755780649354,-193.152302,0.00021917,2]
[380458251,1755780649365,-193.152302,0.00021917,2]
[380458252,1755780649375,-193.152302,0.00021917,2]
[380458253,1755780649385,-193.152302,0.00021917,2]
[380458254,1755780649394,-480.0,0.00021917,3]
[380458255,1755780649404,-1527.38,0.00021917,3]
[380458256,1755780649413,-2326.77,0.00021917,3]
[380458257,1755780649424,-480.0,0.00021917,3]
[380458258,1755780649436,-949.52,0.00021917,3]
[380458259,1755780649447,-904.92,0.00021917,3]
[380458260,1755780649460,-1430.1,0.00021917,3]
[380458261,1755780649472,-480.0,0.00021917,3]
[380458262,1755780649482,-2572.18,0.00021917,3]
[380458263,1755780649492,-480.0,0.00021917,3]
[380458264,1755780649502,-862.52,0.00021917,3]
[380458265,1755780649516,-480.0,0.00021917,3]
[380458266,1755780649526,-15358.94,0.00021917,3]
[380458267,1755780649539,-480.0,0.00021917,3]
[380458268,1755780649555,-361.22466115,0.00021917,3]
[380458269,1755780649565,-480.0,0.00021917,3]
[380458270,1755780649575,-480.0,0.00021917,3]
[380458271,1755780649585,-480.0,0.00021917,3]
[380458272,1755780649595,-480.0,0.00021917,3]
[380458273,1755780649604,-480.0,0.00021917,3]
[380458274,1755780649613,-480.0,0.00021917,3]
[380458275,1755780649623,-480.0,0.00021917,3]
[380458276,1755780649633,-1136.32,0.00021917,3]
[380458277,1755780649642,-480.0,0.00021917,3]
[380458278,1755780649652,-480.0,0.00021917,3]
[380458279,1755780649661,-480.0,0.00021917,3]
[380458280,1755780649670,-481.71,0.00021917,3]
[380458281,1755780649679,-4238.2,0.00021917,3]
[380458282,1755780649689,-3752.77,0.00021917,3]
[380458283,1755780649699,-722.87,0.00021917,3]
[380458284,1755780649708,-384.85875697,0.00021917,3]
[380458285,1755780649717,-480.0,0.00021917,3]
[380458286,1755780649727,-480.0,0.00021917,3]
[380458287,1755780649737,-151.0,0.00021917,2]
[380458288,1755780649746,-151.0,0.00021917,2]
[380458289,1755780649756,-482.93811005,0.00021917,3]
[380458290,1755780649768,-151.0,0.00021917,2]
[380458291,1755780649778,-733.09,0.00021917,3]
[380458292,1755780649787,-594.35,0.00021917,3]
[380458293,1755780649797,-585.29384539,0.00021917,3]
[380458294,1755780649807,-151.0,0.00021917,2]
[380458295,1755780649817,-281.073626,0.00021917,2]
[380458296,1755780649826,-2503.58,0.00021917,3]
[380458297,1755780649836,-480.0,0.00021917,3]
[380458298,1755780649846,-2138.64,0.00021917,3]
[380458299,1755780649855,-480.0,0.00021917,3]
[380458300,1755780649865,-480.0,0.00021917,3]
[380458301,1755780649875,-563.13,0.00021917,3]
[380458302,1755780649884,-500.0,0.00021917,3]
[380458303,1755780650045,-500.0,0.00021917,3]
[380458304,1755780650055,-500.0,0.00021917,3]
[380458305,1755780650065,-500.0,0.00021917,3]
[380458306,1755780650075,-500.0,0.00021917,3]
[380458307,1755780650084,-500.0,0.00021917,3]
[380458308,1755780650093,-500.0,0.00021917,3]
[380458309,1755780650103,-500.0,0.00021917,3]
[380458310,1755780650112,-500.0,0.00021917,3]
[380458311,1755780650122,-500.0,0.00021917,3]
[380458312,1755780650131,-500.0,0.00021917,3]
[380458313,1755780650141,-500.0,0.00021917,3]
[380458314,1755780650150,-500.0,0.00021917,3]
[380458315,1755780650159,-500.0,0.00021917,3]
[380458316,1755780650169,-402.26,0.00021917,3]
[380458317,1755780650178,-1192.86,0.00021917,3]
[380458318,1755780650187,-3343.96,0.00021917,3]
[380458319,1755780650198,-480.0,0.00021917,3]
[380458320,1755780650208,-2851.15,0.00021917,3]
[380458321,1755780650217,-151.0,0.00021917,2]
[380458322,1755780650227,-480.0,0.00021917,3]
[380458323,1755780650236,-151.0,0.00021917,2]
[380458324,1755780650245,-292.212651,0.00021917,2]
[380458325,1755780650255,-223.020353,0.00021917,2]
[380458326,1755780650267,-1844.23,0.00021917,3]
[380458327,1755780650276,-480.0,0.00021917,3]
[380458328,1755780650286,-151.426035,0.00021917,2]
[380458329,1755780650296,-2461.4,0.00021917,3]
[380458330,1755780650305,-480.0,0.00021917,3]
[380458331,1755780650315,-480.0,0.00021917,3]
[380458332,1755780650324,-480.0,0.00021917,3]
[380458333,1755780650333,-480.0,0.00021917,3]
[380458334,1755780650342,-500.0,0.00021917,3]
[380458335,1755780650352,-1555.46,0.00021917,3]
[380458336,1755780650361,-480.0,0.00021917,3]
[380458337,1755780650371,-480.0,0.00021917,3]
[380458338,1755780650381,-151.0,0.00021917,2]
[380458339,1755780650391,-683.14,0.00021917,3]
[380458340,1755780650400,-480.0,0.00021917,3]
[380458341,1755780650409,-480.0,0.00021917,3]
[380458342,1755780650419,-480.0,0.00021917,3]
[380458343,1755780650429,-512.64,0.00021917,3]
[380458344,1755780650438,-594.64,0.00021917,3]
[380458345,1755780650448,-216.887446,0.00021917,2]
[380458346,1755780650457,-216.887446,0.00021917,2]
[380458347,1755780650466,-216.887446,0.00021917,2]
[380458348,1755780650477,-1201.51,0.00021917,3]
[380458349,1755780650487,-480.0,0.00021917,3]
[380458350,1755780650496,-480.0,0.00021917,3]
[380458351,1755780650508,-480.0,0.00021917,3]
[380458352,1755780650523,-216.887446,0.00021917,2]
[380458353,1755780650533,-480.0,0.00021917,3]
[380458354,1755780650544,-216.887446,0.00021917,2]
[380458355,1755780650555,-216.887446,0.00021917,2]
[380458356,1755780650567,-1437.53,0.00021917,3]
[380458357,1755780650576,-480.0,0.00021917,3]
[380458358,1755780650586,-1038.78,0.00021917,3]
[380458359,1755780650596,-151.0,0.00021917,2]
[380458360,1755780650606,-216.887446,0.00021917,2]
[380458361,1755780650616,-151.0,0.00021917,2]
[380458362,1755780650625,-1368.9,0.00021917,3]
[380458363,1755780650636,-216.887446,0.00021917,2]
[380458364,1755780650645,-151.0,0.00021917,2]
[380458365,1755780650655,-216.887446,0.00021917,2]
[380458366,1755780650664,-480.0,0.00021917,3]
[380458367,1755780650674,-480.0,0.00021917,3]
[380458368,1755780650683,-774.16,0.00021917,3]
[380458369,1755780650693,-216.887446,0.00021917,2]
[380458370,1755780650703,-700.14,0.00021917,3]
[380458371,1755780650713,-216.887446,0.00021917,2]
[380458372,1755780650722,-467.6348417,0.00021917,3]
[380458373,1755780650731,-216.887446,0.00021917,2]
[380458374,1755780650740,-520.09,0.00021917,3]
[380458375,1755780650750,-461.40224708,0.00021917,3]
[380458376,1755780650759,-886.16,0.00021917,3]
[380458377,1755780650772,-2076.02,0.00021917,3]
[380458378,1755780650781,-151.0,0.00021917,2]
[380458379,1755780650790,-480.0,0.00021917,3]
[380458380,1755780650799,-151.0,0.00021917,2]
[380458381,1755780650808,-10323.46,0.00021917,3]
[380458382,1755780650818,-151.741426,0.00021917,2]
[380458383,1755780650827,-480.0,0.00021917,3]
[380458384,1755780650837,-375.71141535,0.00021917,3]
[380458385,1755780650846,-575.79,0.00021917,3]
[380458386,1755780650856,-13389.07,0.00021917,3]
[380458387,1755780650866,-151.0,0.00021917,2]
[380458388,1755780650876,-480.0,0.00021917,3]
[380458389,1755780650885,-151.0,0.00021917,2]
[380458390,1755780650894,-151.0,0.00021917,2]
[380458391,1755780650904,-2495.98,0.00021917,3]
[380458392,1755780650914,-151.0,0.00021917,2]
[380458393,1755780650924,-151.0,0.00021917,2]
[380458394,1755780650934,-1187.18,0.00021917,3]
[380458395,1755780650943,-151.0,0.00021917,2]
[380458396,1755780650952,-480.0,0.00021917,3]
[380458397,1755780650963,-151.0,0.00021917,2]
[380458398,1755780650974,-159.699792,0.00021917,2]
[380458399,1755780650984,-480.0,0.00021917,3]
[380458400,1755780650993,-480.0,0.00021917,3]
[380458401,1755780651003,-994.09,0.00021917,3]
[380458402,1755780651014,-513.47,0.00021917,3]
[380458403,1755780651023,-480.0,0.00021917,3]
[380458404,1755780651033,-480.0,0.00021917,3]